[Event "Titled Tuesday Blitz May 10 Late 2022"]
[White "Izzat, Kanan"]
[Black "Kamsky, Gata"]
[WhiteFideId "13405209"]
[BlackFideId "2000024"]
[WhiteElo "2362"]
[BlackElo "2645"]
[Result "1-0"]
[Round "09"]
[TimeControl "180+1"]
[Date "2022.05.10"]
[WhiteClock "0:00:08"]
[BlackClock "0:00:01"]

1. e4 {[%clk 0:02:59]}  c5 {[%clk 0:02:59]} 2. Nf3 {[%clk 0:02:58]}  e6 {[%clk 0:02:59]} 3. c3 {[%clk 0:02:58]}  d5 {[%clk 0:02:56]} 4. exd5 {[%clk 0:02:57]}  Qxd5 {[%clk 0:02:56]} 5. d4 {[%clk 0:02:56]}  Nf6 {[%clk 0:02:56]} 6. Na3 {[%clk 0:02:56]}  a6 {[%clk 0:02:55]} 7. Nc4 {[%clk 0:02:56]}  Nbd7 {[%clk 0:02:55]} 8. Be2 {[%clk 0:02:55]}  cxd4 {[%clk 0:02:49]} 9. Nxd4 {[%clk 0:02:51]}  Qxg2 {[%clk 0:02:43]} 10. Bf3 {[%clk 0:02:51]}  Qh3 {[%clk 0:02:35]} 11. Bf4 {[%clk 0:02:45]}  Bc5 {[%clk 0:01:21]} 12. Rg1 {[%clk 0:02:26]}  O-O {[%clk 0:01:02]} 13. Rg3 {[%clk 0:02:26]}  Qh4 {[%clk 0:01:02]} 14. Qd2 {[%clk 0:02:25]}  e5 {[%clk 0:00:43]} 15. Rxg7+ {[%clk 0:02:11]}  Kh8 {[%clk 0:00:40]} 16. Bg5 {[%clk 0:01:37]}  Qxh2 {[%clk 0:00:38]} 17. Nf5 {[%clk 0:01:18]}  Qh3 {[%clk 0:00:33]} 18. Nh4 {[%clk 0:00:16]}  Kxg7 {[%clk 0:00:22]} 19. Bxf6+ {[%clk 0:00:16]}  Kxf6 {[%clk 0:00:22]} 20. Qh6+ {[%clk 0:00:16]}  Ke7 {[%clk 0:00:20]} 21. Ng6+ {[%clk 0:00:17]}  hxg6 {[%clk 0:00:20]} 22. Qxh3 {[%clk 0:00:17]}  Rb8 {[%clk 0:00:17]} 23. O-O-O {[%clk 0:00:16]}  Bxf2 {[%clk 0:00:14]} 24. Bg4 {[%clk 0:00:11]}  Nf6 {[%clk 0:00:14]} 25. Bxc8 {[%clk 0:00:10]}  Rbxc8 {[%clk 0:00:14]} 26. Nxe5 {[%clk 0:00:10]}  Rfd8 {[%clk 0:00:13]} 27. Nd3 {[%clk 0:00:10]}  Bb6 {[%clk 0:00:12]} 28. Qh4 {[%clk 0:00:11]}  Rd6 {[%clk 0:00:11]} 29. Re1+ {[%clk 0:00:11]}  Kf8 {[%clk 0:00:11]} 30. Qh8+ {[%clk 0:00:10]}  Ng8 {[%clk 0:00:11]} 31. Ne5 {[%clk 0:00:11]}  Rcd8 {[%clk 0:00:09]} 32. Rf1 {[%clk 0:00:11]}  Be3+ {[%clk 0:00:07]} 33. Kc2 {[%clk 0:00:11]}  f5 {[%clk 0:00:06]} 34. Qh7 {[%clk 0:00:07]}  Nh6 {[%clk 0:00:01]} 35. Nxg6+ {[%clk 0:00:07]}  Rxg6 {[%clk 0:00:01]} 36. Qxg6 {[%clk 0:00:07]}  Rd2+ {[%clk 0:00:01]} 37. Kb3 {[%clk 0:00:08]} 1-0


[Site "https://www.chess.com"]

[Event "Titled Tuesday Blitz May 10 Late 2022"]
[White "Joubert, Dantelle"]
[Black "Akrakan"]
[WhiteFideId "14310813"]
[WhiteElo "1507"]
[BlackElo "2115"]
[Result "1/2-1/2"]
[Round "09"]
[TimeControl "180+1"]
[Date "2022.05.11"]
[WhiteClock "0:00:31"]
[BlackClock "0:00:58"]

1. Nf3 {[%clk 0:03:00]}  d5 {[%clk 0:02:59]} 2. c4 {[%clk 0:02:59]}  e6 {[%clk 0:02:59]} 3. d4 {[%clk 0:02:53]}  Nf6 {[%clk 0:02:58]} 4. g3 {[%clk 0:02:53]}  Be7 {[%clk 0:02:58]} 5. Bg2 {[%clk 0:02:50]}  O-O {[%clk 0:02:58]} 6. O-O {[%clk 0:02:50]}  c5 {[%clk 0:02:58]} 7. cxd5 {[%clk 0:02:49]}  exd5 {[%clk 0:02:58]} 8. Nc3 {[%clk 0:02:43]}  Nc6 {[%clk 0:02:58]} 9. dxc5 {[%clk 0:02:43]}  Bxc5 {[%clk 0:02:58]} 10. Bg5 {[%clk 0:02:43]}  Be6 {[%clk 0:02:52]} 11. Rc1 {[%clk 0:02:39]}  Be7 {[%clk 0:02:52]} 12. Nd4 {[%clk 0:02:35]}  Rc8 {[%clk 0:02:51]} 13. Nxe6 {[%clk 0:02:28]}  fxe6 {[%clk 0:02:51]} 14. Bh3 {[%clk 0:02:27]}  Qd6 {[%clk 0:02:47]} 15. Nb5 {[%clk 0:02:17]}  Qd7 {[%clk 0:02:38]} 16. Nd4 {[%clk 0:02:14]}  Nxd4 {[%clk 0:02:38]} 17. Qxd4 {[%clk 0:02:13]}  Rxc1 {[%clk 0:02:24]} 18. Rxc1 {[%clk 0:02:12]}  Ne4 {[%clk 0:02:25]} 19. Bxe7 {[%clk 0:01:57]}  Qxe7 {[%clk 0:02:25]} 20. f3 {[%clk 0:01:56]}  Ng5 {[%clk 0:02:18]} 21. Bg4 {[%clk 0:01:47]}  b6 {[%clk 0:02:10]} 22. Qe5 {[%clk 0:01:41]}  Qf6 {[%clk 0:01:49]} 23. Qxf6 {[%clk 0:01:28]}  Rxf6 {[%clk 0:01:47]} 24. Rc7 {[%clk 0:01:25]}  Rf7 {[%clk 0:01:44]} 25. Rc8+ {[%clk 0:01:16]}  Rf8 {[%clk 0:01:43]} 26. Rc6 {[%clk 0:01:15]}  g6 {[%clk 0:01:33]} 27. h4 {[%clk 0:01:13]}  h5 {[%clk 0:01:24]} 28. Bxe6+ {[%clk 0:01:12]}  Nxe6 {[%clk 0:01:23]} 29. Rxe6 {[%clk 0:01:13]}  Kf7 {[%clk 0:01:13]} 30. Rd6 {[%clk 0:01:11]}  Rc8 {[%clk 0:01:13]} 31. Rxd5 {[%clk 0:01:09]}  Rc2 {[%clk 0:01:13]} 32. Rd7+ {[%clk 0:01:07]}  Kf6 {[%clk 0:01:13]} 33. Rxa7 {[%clk 0:01:06]}  Rxe2 {[%clk 0:01:12]} 34. Ra6 {[%clk 0:01:05]}  Rxb2 {[%clk 0:01:12]} 35. a4 {[%clk 0:01:02]}  Ke5 {[%clk 0:01:12]} 36. a5 {[%clk 0:00:59]}  bxa5 {[%clk 0:01:11]} 37. Rxa5+ {[%clk 0:00:58]}  Kd4 {[%clk 0:01:11]} 38. Rg5 {[%clk 0:00:54]}  Ke3 {[%clk 0:01:11]} 39. f4 {[%clk 0:00:50]}  Kf3 {[%clk 0:01:06]} 40. Rxg6 {[%clk 0:00:46]}  Ra2 {[%clk 0:00:57]} 41. f5 {[%clk 0:00:44]}  Ra1+ {[%clk 0:00:57]} 42. Kh2 {[%clk 0:00:44]}  Ra2+ {[%clk 0:00:57]} 43. Kh3 {[%clk 0:00:43]}  Ra1 {[%clk 0:00:57]} 44. Kh2 {[%clk 0:00:38]}  Ra2+ {[%clk 0:00:58]} 45. Kg1 {[%clk 0:00:32]}  Ra1+ {[%clk 0:00:58]} 46. Kh2 {[%clk 0:00:31]} 1/2-1/2


[Site "https://www.chess.com"]

[Event "Titled Tuesday Blitz May 10 Late 2022"]
[White "Karttunen, Mika"]
[Black "Manukian, Artak"]
[WhiteFideId "502081"]
[BlackFideId "13301373"]
[WhiteElo "2343"]
[BlackElo "2427"]
[Result "1-0"]
[Round "09"]
[TimeControl "180+1"]
[Date "2022.05.11"]
[WhiteClock "0:00:25"]
[BlackClock "0:00:13"]

1. Nf3 {[%clk 0:03:00]}  g6 {[%clk 0:02:57]} 2. c4 {[%clk 0:02:57]}  Bg7 {[%clk 0:02:49]} 3. g3 {[%clk 0:02:55]}  e5 {[%clk 0:02:48]} 4. Nc3 {[%clk 0:02:53]}  h5 {[%clk 0:02:44]} 5. h4 {[%clk 0:02:47]}  Nh6 {[%clk 0:02:44]} 6. d3 {[%clk 0:02:46]}  Nf5 {[%clk 0:02:44]} 7. Bg5 {[%clk 0:02:42]}  f6 {[%clk 0:02:42]} 8. Bd2 {[%clk 0:02:42]}  c5 {[%clk 0:02:39]} 9. Bg2 {[%clk 0:02:29]}  Nc6 {[%clk 0:02:39]} 10. a3 {[%clk 0:02:20]}  a5 {[%clk 0:02:35]} 11. Rb1 {[%clk 0:02:18]}  d6 {[%clk 0:02:27]} 12. Nd5 {[%clk 0:02:01]}  O-O {[%clk 0:02:25]} 13. e3 {[%clk 0:01:55]}  Be6 {[%clk 0:02:21]} 14. Ng1 {[%clk 0:01:48]}  Nfe7 {[%clk 0:02:12]} 15. Ne2 {[%clk 0:01:42]}  Bxd5 {[%clk 0:01:59]} 16. cxd5 {[%clk 0:01:41]}  Nb8 {[%clk 0:01:59]} 17. Nc3 {[%clk 0:01:32]}  f5 {[%clk 0:01:53]} 18. e4 {[%clk 0:01:28]}  f4 {[%clk 0:01:48]} 19. g4 {[%clk 0:01:25]}  hxg4 {[%clk 0:01:31]} 20. Qxg4 {[%clk 0:01:25]}  Qd7 {[%clk 0:01:30]} 21. Qxd7 {[%clk 0:01:16]}  Nxd7 {[%clk 0:01:31]} 22. Bh3 {[%clk 0:01:16]}  Nf6 {[%clk 0:01:27]} 23. Nb5 {[%clk 0:01:15]}  Ne8 {[%clk 0:01:09]} 24. a4 {[%clk 0:00:55]}  Bf6 {[%clk 0:01:08]} 25. Bg4 {[%clk 0:00:52]}  Kg7 {[%clk 0:01:08]} 26. h5 {[%clk 0:00:44]}  Rh8 {[%clk 0:01:05]} 27. Ke2 {[%clk 0:00:44]}  Bg5 {[%clk 0:00:55]} 28. Rbg1 {[%clk 0:00:41]}  Ng8 {[%clk 0:00:39]} 29. Bf3 {[%clk 0:00:40]}  Kf6 {[%clk 0:00:34]} 30. Rg2 {[%clk 0:00:34]}  Nh6 {[%clk 0:00:16]} 31. hxg6 {[%clk 0:00:28]}  Kxg6 {[%clk 0:00:16]} 32. Rh5 {[%clk 0:00:25]}  Nf7 {[%clk 0:00:15]} 33. Rgxg5+ {[%clk 0:00:25]}  Nxg5 {[%clk 0:00:13]} 34. Rxh8 {[%clk 0:00:25]} 1-0


[Site "https://www.chess.com"]

[Event "Titled Tuesday Blitz May 10 Late 2022"]
[White "Keller, Peter"]
[Black "Wagner, Dinara"]
[WhiteFideId "1272105"]
[BlackFideId "24157570"]
[WhiteElo "2275"]
[BlackElo "2216"]
[Result "0-1"]
[Round "09"]
[TimeControl "180+1"]
[Date "2022.05.11"]
[WhiteClock "0:00:02"]
[BlackClock "0:00:16"]

1. e4 {[%clk 0:03:00]}  c5 {[%clk 0:02:59]} 2. c3 {[%clk 0:02:56]}  d5 {[%clk 0:03:00]} 3. exd5 {[%clk 0:02:56]}  Qxd5 {[%clk 0:03:00]} 4. d4 {[%clk 0:02:52]}  Nf6 {[%clk 0:03:00]} 5. Nf3 {[%clk 0:02:51]}  Nc6 {[%clk 0:03:00]} 6. dxc5 {[%clk 0:02:43]}  Qxd1+ {[%clk 0:02:59]} 7. Kxd1 {[%clk 0:02:44]}  e5 {[%clk 0:03:00]} 8. b4 {[%clk 0:02:38]}  Bf5 {[%clk 0:02:53]} 9. Be3 {[%clk 0:02:05]}  Ng4 {[%clk 0:02:52]} 10. Nbd2 {[%clk 0:02:01]}  a5 {[%clk 0:02:48]} 11. Bb5 {[%clk 0:01:57]}  O-O-O {[%clk 0:02:33]} 12. a3 {[%clk 0:01:49]}  Nxe3+ {[%clk 0:02:12]} 13. fxe3 {[%clk 0:01:48]}  Be7 {[%clk 0:02:08]} 14. Ke2 {[%clk 0:01:21]}  Bg4 {[%clk 0:02:05]} 15. h3 {[%clk 0:01:17]}  Bh5 {[%clk 0:02:05]} 16. g4 {[%clk 0:01:10]}  Bg6 {[%clk 0:02:05]} 17. Bxc6 {[%clk 0:01:10]}  bxc6 {[%clk 0:02:05]} 18. Nxe5 {[%clk 0:01:11]}  Bf6 {[%clk 0:02:02]} 19. Nxc6 {[%clk 0:00:56]}  Rd3 {[%clk 0:01:59]} 20. Nxa5 {[%clk 0:00:39]}  Bxc3 {[%clk 0:01:15]} 21. Ra2 {[%clk 0:00:39]}  Re8 {[%clk 0:00:59]} 22. Nac4 {[%clk 0:00:38]}  Kc7 {[%clk 0:00:59]} 23. Rc1 {[%clk 0:00:30]}  Bf6 {[%clk 0:00:46]} 24. e4 {[%clk 0:00:20]}  Rxh3 {[%clk 0:00:43]} 25. b5 {[%clk 0:00:20]}  Rh2+ {[%clk 0:00:43]} 26. Kd3 {[%clk 0:00:20]}  Rd8+ {[%clk 0:00:43]} 27. Nd6 {[%clk 0:00:20]}  Be5 {[%clk 0:00:42]} 28. Nc4 {[%clk 0:00:19]}  Rxa2 {[%clk 0:00:40]} 29. Nxe5 {[%clk 0:00:19]}  Rxa3+ {[%clk 0:00:38]} 30. Kd4 {[%clk 0:00:19]}  Rxd6+ {[%clk 0:00:34]} 31. cxd6+ {[%clk 0:00:19]}  Kxd6 {[%clk 0:00:35]} 32. Rc6+ {[%clk 0:00:16]}  Ke7 {[%clk 0:00:35]} 33. b6 {[%clk 0:00:13]}  Ra4+ {[%clk 0:00:34]} 34. Nc4 {[%clk 0:00:13]}  Rb4 {[%clk 0:00:32]} 35. Kc5 {[%clk 0:00:12]}  Rb1 {[%clk 0:00:30]} 36. Rc7+ {[%clk 0:00:13]}  Ke6 {[%clk 0:00:30]} 37. e5 {[%clk 0:00:08]}  Be4 {[%clk 0:00:30]} 38. Nd6 {[%clk 0:00:06]}  Bf3 {[%clk 0:00:30]} 39. Kd4 {[%clk 0:00:05]}  Rb4+ {[%clk 0:00:29]} 40. Rc4 {[%clk 0:00:05]}  Rxb6 {[%clk 0:00:28]} 41. Rc8 {[%clk 0:00:02]}  Rb4+ {[%clk 0:00:26]} 42. Kc5 {[%clk 0:00:02]}  Rxg4 {[%clk 0:00:23]} 43. Re8+ {[%clk 0:00:02]}  Kd7 {[%clk 0:00:23]} 44. Rf8 {[%clk 0:00:03]}  Rg5 {[%clk 0:00:16]} 45. Rxf7+ {[%clk 0:00:02]}  Ke6 {[%clk 0:00:16]} 0-1


[Site "https://www.chess.com"]

[Event "Titled Tuesday Blitz May 10 Late 2022"]
[White "Lashkin, Jegor"]
[Black "Ibarra Jerez, Jose Carlos"]
[WhiteFideId "13907808"]
[BlackFideId "2226332"]
[WhiteElo "2368"]
[BlackElo "2626"]
[Result "0-1"]
[Round "09"]
[TimeControl "180+1"]
[Date "2022.05.10"]
[WhiteClock "0:00:04"]
[BlackClock "0:00:09"]

1. d4 {[%clk 0:03:00]}  Nf6 {[%clk 0:02:57]} 2. c4 {[%clk 0:03:01]}  d6 {[%clk 0:02:57]} 3. Nf3 {[%clk 0:03:01]}  g6 {[%clk 0:02:57]} 4. Nc3 {[%clk 0:03:01]}  Bf5 {[%clk 0:02:58]} 5. d5 {[%clk 0:03:00]}  e5 {[%clk 0:02:56]} 6. dxe6 {[%clk 0:02:53]}  Bxe6 {[%clk 0:02:57]} 7. Nd4 {[%clk 0:02:54]}  Bd7 {[%clk 0:02:57]} 8. g3 {[%clk 0:02:53]}  Bg7 {[%clk 0:02:55]} 9. Bg2 {[%clk 0:02:53]}  Nc6 {[%clk 0:02:56]} 10. Nc2 {[%clk 0:02:49]}  O-O {[%clk 0:02:56]} 11. O-O {[%clk 0:02:49]}  Re8 {[%clk 0:02:54]} 12. b3 {[%clk 0:02:46]}  a6 {[%clk 0:02:48]} 13. Bb2 {[%clk 0:02:45]}  Rb8 {[%clk 0:02:49]} 14. Nd5 {[%clk 0:02:43]}  b5 {[%clk 0:02:28]} 15. cxb5 {[%clk 0:02:35]}  axb5 {[%clk 0:02:26]} 16. Rc1 {[%clk 0:02:23]}  Nxd5 {[%clk 0:02:16]} 17. Bxg7 {[%clk 0:02:24]}  Nf4 {[%clk 0:02:13]} 18. gxf4 {[%clk 0:02:11]}  Kxg7 {[%clk 0:02:13]} 19. Nd4 {[%clk 0:02:08]}  Nxd4 {[%clk 0:02:06]} 20. Qxd4+ {[%clk 0:02:09]}  Kg8 {[%clk 0:02:05]} 21. e3 {[%clk 0:02:06]}  Rb6 {[%clk 0:01:56]} 22. b4 {[%clk 0:02:04]}  Ra6 {[%clk 0:01:51]} 23. Rc2 {[%clk 0:02:02]}  Bf5 {[%clk 0:01:46]} 24. Rd2 {[%clk 0:01:42]}  Be6 {[%clk 0:01:43]} 25. Bd5 {[%clk 0:01:28]}  Bxd5 {[%clk 0:01:32]} 26. Qxd5 {[%clk 0:01:29]}  Qd7 {[%clk 0:01:30]} 27. Rc1 {[%clk 0:01:25]}  Rea8 {[%clk 0:01:28]} 28. h3 {[%clk 0:00:56]}  R8a7 {[%clk 0:01:05]} 29. Kg2 {[%clk 0:00:54]}  Ra4 {[%clk 0:00:58]} 30. Qb3 {[%clk 0:00:32]}  Qf5 {[%clk 0:00:54]} 31. Qc2 {[%clk 0:00:25]}  Qe6 {[%clk 0:00:34]} 32. Qc6 {[%clk 0:00:20]}  Rxb4 {[%clk 0:00:30]} 33. Kg3 {[%clk 0:00:19]}  Rc4 {[%clk 0:00:19]} 34. Rxc4 {[%clk 0:00:15]}  Qxc4 {[%clk 0:00:18]} 35. Qxc4 {[%clk 0:00:14]}  bxc4 {[%clk 0:00:19]} 36. e4 {[%clk 0:00:12]}  Ra3+ {[%clk 0:00:18]} 37. f3 {[%clk 0:00:12]}  Kf8 {[%clk 0:00:18]} 38. Rc2 {[%clk 0:00:12]}  c3 {[%clk 0:00:18]} 39. Kf2 {[%clk 0:00:12]}  Ke7 {[%clk 0:00:15]} 40. Ke3 {[%clk 0:00:12]}  c6 {[%clk 0:00:14]} 41. Kd3 {[%clk 0:00:12]}  Kd7 {[%clk 0:00:15]} 42. h4 {[%clk 0:00:09]}  f5 {[%clk 0:00:14]} 43. Kd4 {[%clk 0:00:09]}  c5+ {[%clk 0:00:13]} 44. Kd3 {[%clk 0:00:06]}  Kc6 {[%clk 0:00:13]} 45. Rxc3 {[%clk 0:00:04]}  Rxa2 {[%clk 0:00:12]} 46. Rb3 {[%clk 0:00:03]}  Rh2 {[%clk 0:00:10]} 47. Rb8 {[%clk 0:00:03]}  Rxh4 {[%clk 0:00:11]} 48. Ke3 {[%clk 0:00:02]}  fxe4 {[%clk 0:00:11]} 49. fxe4 {[%clk 0:00:02]}  Rh3+ {[%clk 0:00:12]} 50. Ke2 {[%clk 0:00:02]}  Rg3 {[%clk 0:00:11]} 51. Kf2 {[%clk 0:00:02]}  Rd3 {[%clk 0:00:10]} 52. Rh8 {[%clk 0:00:02]}  Rh3 {[%clk 0:00:09]} 53. Kg2 {[%clk 0:00:01]}  Rh5 {[%clk 0:00:09]} 54. Rf8 {[%clk 0:00:02]}  c4 {[%clk 0:00:09]} 55. Kg3 {[%clk 0:00:02]}  Kc5 {[%clk 0:00:09]} 56. Kf3 {[%clk 0:00:03]}  Kd4 {[%clk 0:00:10]} 57. Rd8 {[%clk 0:00:03]}  d5 {[%clk 0:00:09]} 58. e5 {[%clk 0:00:04]}  Rh3+ {[%clk 0:00:08]} 59. Kg4 {[%clk 0:00:04]}  Re3 {[%clk 0:00:08]} 60. Rc8 {[%clk 0:00:05]}  c3 {[%clk 0:00:09]} 61. Rc7 {[%clk 0:00:05]}  Kd3 {[%clk 0:00:09]} 62. Rg7 {[%clk 0:00:05]}  c2 {[%clk 0:00:09]} 63. Rc7 {[%clk 0:00:05]}  Kd2 {[%clk 0:00:08]} 64. Rc5 {[%clk 0:00:05]}  d4 {[%clk 0:00:09]} 65. Kg5 {[%clk 0:00:05]}  d3 {[%clk 0:00:09]} 66. Kf6 {[%clk 0:00:04]}  c1=Q {[%clk 0:00:09]} 0-1


[Site "https://www.chess.com"]

[Event "Titled Tuesday Blitz May 10 Late 2022"]
[White "Leiva, Gianmarco"]
[Black "Bettalli, Francesco"]
[WhiteFideId "3804399"]
[BlackFideId "2816453"]
[WhiteElo "2323"]
[BlackElo "2216"]
[Result "0-1"]
[Round "09"]
[TimeControl "180+1"]
[Date "2022.05.10"]
[WhiteClock "0:00:08"]
[BlackClock "0:00:23"]

1. d4 {[%clk 0:02:49]}  Nf6 {[%clk 0:02:57]} 2. Bf4 {[%clk 0:02:45]}  d5 {[%clk 0:02:57]} 3. Nc3 {[%clk 0:02:42]}  c5 {[%clk 0:02:55]} 4. e3 {[%clk 0:02:37]}  Qa5 {[%clk 0:02:54]} 5. dxc5 {[%clk 0:01:59]}  Nc6 {[%clk 0:02:49]} 6. Bb5 {[%clk 0:01:44]}  a6 {[%clk 0:02:49]} 7. Bxc6+ {[%clk 0:01:44]}  bxc6 {[%clk 0:02:49]} 8. Qd4 {[%clk 0:01:38]}  e6 {[%clk 0:02:50]} 9. b4 {[%clk 0:01:38]}  Qa3 {[%clk 0:02:50]} 10. Rb1 {[%clk 0:01:30]}  a5 {[%clk 0:02:40]} 11. Bd6 {[%clk 0:01:19]}  Bxd6 {[%clk 0:02:33]} 12. cxd6 {[%clk 0:01:19]}  axb4 {[%clk 0:02:33]} 13. Qxb4 {[%clk 0:01:15]}  Qxb4 {[%clk 0:02:31]} 14. Rxb4 {[%clk 0:01:15]}  Kd7 {[%clk 0:02:31]} 15. Nf3 {[%clk 0:01:10]}  Kxd6 {[%clk 0:02:31]} 16. e4 {[%clk 0:01:11]}  Nd7 {[%clk 0:02:26]} 17. O-O {[%clk 0:01:04]}  Ba6 {[%clk 0:02:22]} 18. Rd1 {[%clk 0:01:04]}  Rhb8 {[%clk 0:02:20]} 19. a3 {[%clk 0:01:02]}  Bc8 {[%clk 0:02:06]} 20. exd5 {[%clk 0:00:47]}  cxd5 {[%clk 0:02:01]} 21. Ng5 {[%clk 0:00:41]}  Ke7 {[%clk 0:01:58]} 22. Re1 {[%clk 0:00:34]}  Kf6 {[%clk 0:01:50]} 23. h4 {[%clk 0:00:35]}  h6 {[%clk 0:01:49]} 24. Rf4+ {[%clk 0:00:34]}  Kg6 {[%clk 0:01:49]} 25. Nxf7 {[%clk 0:00:34]}  Rxa3 {[%clk 0:01:44]} 26. Rxe6+ {[%clk 0:00:33]}  Nf6 {[%clk 0:01:45]} 27. Ne5+ {[%clk 0:00:24]}  Kh7 {[%clk 0:01:45]} 28. Rc6 {[%clk 0:00:18]}  Bb7 {[%clk 0:01:00]} 29. Rc7 {[%clk 0:00:18]}  Ne8 {[%clk 0:01:01]} 30. Rc5 {[%clk 0:00:05]}  Rd8 {[%clk 0:00:54]} 31. Ne2 {[%clk 0:00:05]}  Ra1+ {[%clk 0:00:44]} 32. Kh2 {[%clk 0:00:05]}  Re1 {[%clk 0:00:45]} 33. Nf7 {[%clk 0:00:02]}  Rd7 {[%clk 0:00:41]} 34. Nd4 {[%clk 0:00:02]}  Nf6 {[%clk 0:00:40]} 35. Rxf6 {[%clk 0:00:02]}  gxf6 {[%clk 0:00:40]} 36. Nd6 {[%clk 0:00:02]}  Rxd6 {[%clk 0:00:35]} 37. Rc7+ {[%clk 0:00:03]}  Kg6 {[%clk 0:00:36]} 38. Rxb7 {[%clk 0:00:04]}  Re4 {[%clk 0:00:36]} 39. Nf3 {[%clk 0:00:03]}  Rc6 {[%clk 0:00:36]} 40. Rd7 {[%clk 0:00:03]}  Rxc2 {[%clk 0:00:34]} 41. Rxd5 {[%clk 0:00:03]}  Rxf2 {[%clk 0:00:35]} 42. h5+ {[%clk 0:00:03]}  Kf7 {[%clk 0:00:35]} 43. Kg3 {[%clk 0:00:04]}  Ree2 {[%clk 0:00:34]} 44. Rd7+ {[%clk 0:00:04]}  Ke6 {[%clk 0:00:33]} 45. Rh7 {[%clk 0:00:03]}  Rxg2+ {[%clk 0:00:33]} 46. Kf4 {[%clk 0:00:04]}  Rgf2 {[%clk 0:00:22]} 47. Rxh6 {[%clk 0:00:04]}  Ra2 {[%clk 0:00:20]} 48. Kg3 {[%clk 0:00:02]}  Rg2+ {[%clk 0:00:20]} 49. Kf4 {[%clk 0:00:03]}  Ra4+ {[%clk 0:00:20]} 50. Ke3 {[%clk 0:00:02]}  Ra3+ {[%clk 0:00:21]} 51. Ke4 {[%clk 0:00:02]}  Re2+ {[%clk 0:00:21]} 52. Kf4 {[%clk 0:00:02]}  Rf2 {[%clk 0:00:22]} 53. Kg4 {[%clk 0:00:02]}  Rfxf3 {[%clk 0:00:22]} 54. Rh8 {[%clk 0:00:02]}  Rg3+ {[%clk 0:00:21]} 55. Kf4 {[%clk 0:00:03]}  Raf3+ {[%clk 0:00:21]} 56. Ke4 {[%clk 0:00:03]}  f5+ {[%clk 0:00:22]} 57. Kd4 {[%clk 0:00:04]}  Rg4+ {[%clk 0:00:22]} 58. Kc5 {[%clk 0:00:05]}  Rc3+ {[%clk 0:00:23]} 59. Kb5 {[%clk 0:00:05]}  f4 {[%clk 0:00:22]} 60. h6 {[%clk 0:00:06]}  Rh3 {[%clk 0:00:21]} 61. h7 {[%clk 0:00:06]}  Rgh4 {[%clk 0:00:21]} 62. Re8+ {[%clk 0:00:06]}  Kf5 {[%clk 0:00:22]} 63. Rf8+ {[%clk 0:00:07]}  Ke4 {[%clk 0:00:22]} 64. Re8+ {[%clk 0:00:07]}  Kf3 {[%clk 0:00:22]} 65. h8=Q {[%clk 0:00:07]}  Rxh8 {[%clk 0:00:22]} 66. Rxh8 {[%clk 0:00:08]}  Rxh8 {[%clk 0:00:23]} 0-1


[Site "https://www.chess.com"]

[Event "Titled Tuesday Blitz May 10 Late 2022"]
[White "Lewicki, Miroslaw"]
[Black "Jones, Gawain C B"]
[WhiteFideId "1113380"]
[BlackFideId "409561"]
[WhiteElo "2283"]
[BlackElo "2657"]
[Result "0-1"]
[Round "09"]
[TimeControl "180+1"]
[Date "2022.05.10"]
[WhiteClock "0:00:02"]
[BlackClock "0:00:28"]

1. b3 {[%clk 0:02:47]}  g6 {[%clk 0:02:59]} 2. Bb2 {[%clk 0:02:48]}  Nf6 {[%clk 0:02:59]} 3. Nf3 {[%clk 0:02:48]}  Bg7 {[%clk 0:02:59]} 4. e4 {[%clk 0:02:48]}  d6 {[%clk 0:02:59]} 5. Be2 {[%clk 0:02:42]}  O-O {[%clk 0:02:58]} 6. d3 {[%clk 0:02:43]}  c5 {[%clk 0:02:56]} 7. O-O {[%clk 0:02:43]}  Nc6 {[%clk 0:02:57]} 8. Nbd2 {[%clk 0:02:43]}  e5 {[%clk 0:02:57]} 9. c3 {[%clk 0:02:40]}  d5 {[%clk 0:02:56]} 10. Qc2 {[%clk 0:02:38]}  Re8 {[%clk 0:02:48]} 11. Rfe1 {[%clk 0:02:35]}  h6 {[%clk 0:02:43]} 12. Bf1 {[%clk 0:02:33]}  b6 {[%clk 0:02:36]} 13. Rad1 {[%clk 0:02:23]}  Bb7 {[%clk 0:02:33]} 14. exd5 {[%clk 0:02:14]}  Nxd5 {[%clk 0:02:29]} 15. Nc4 {[%clk 0:02:11]}  Qf6 {[%clk 0:02:20]} 16. d4 {[%clk 0:02:05]}  exd4 {[%clk 0:02:17]} 17. cxd4 {[%clk 0:02:01]}  Rxe1 {[%clk 0:02:15]} 18. Rxe1 {[%clk 0:01:13]}  Nxd4 {[%clk 0:02:15]} 19. Nxd4 {[%clk 0:01:05]}  cxd4 {[%clk 0:02:16]} 20. Rd1 {[%clk 0:01:02]}  Nc3 {[%clk 0:02:11]} 21. Re1 {[%clk 0:00:52]}  b5 {[%clk 0:02:04]} 22. Ne5 {[%clk 0:00:45]}  Re8 {[%clk 0:02:03]} 23. Nd7 {[%clk 0:00:26]}  Qd8 {[%clk 0:02:02]} 24. Rxe8+ {[%clk 0:00:26]}  Qxe8 {[%clk 0:02:02]} 25. Nc5 {[%clk 0:00:27]}  Bc6 {[%clk 0:01:50]} 26. b4 {[%clk 0:00:21]}  Nxa2 {[%clk 0:01:40]} 27. Na6 {[%clk 0:00:18]}  Nc3 {[%clk 0:01:34]} 28. Qd3 {[%clk 0:00:18]}  Qe1 {[%clk 0:01:29]} 29. Nc5 {[%clk 0:00:09]}  h5 {[%clk 0:01:11]} 30. Nb3 {[%clk 0:00:07]}  Bd5 {[%clk 0:01:07]} 31. Nd2 {[%clk 0:00:02]}  Qd1 {[%clk 0:00:53]} 32. h3 {[%clk 0:00:01]}  Be6 {[%clk 0:00:45]} 33. Ne4 {[%clk 0:00:01]}  Bc4 {[%clk 0:00:37]} 34. Qxd1 {[%clk 0:00:01]}  Nxd1 {[%clk 0:00:37]} 35. Bxc4 {[%clk 0:00:01]}  bxc4 {[%clk 0:00:36]} 36. Bc1 {[%clk 0:00:02]}  c3 {[%clk 0:00:34]} 37. Kf1 {[%clk 0:00:01]}  d3 {[%clk 0:00:31]} 38. Ke1 {[%clk 0:00:01]}  Nb2 {[%clk 0:00:31]} 39. Bd2 {[%clk 0:00:01]}  cxd2+ {[%clk 0:00:30]} 40. Kxd2 {[%clk 0:00:02]}  f5 {[%clk 0:00:28]} 41. Nc5 {[%clk 0:00:02]}  Bh6+ {[%clk 0:00:28]} 42. Kc3 {[%clk 0:00:02]}  d2 {[%clk 0:00:28]} 0-1


[Site "https://www.chess.com"]